bitfinex/quotes_ETHUSD_20230118
["timestamp","ask_amount","ask_price","bid_price","bid_amount"]
[1674048717575,24.61682653,1585.4,1585.3,0.02496745]
[1674048717792,4.54922772,1585.4,1585.3,0.02496745]
[1674048718054,1.25322772,1585.4,1585.3,0.02496745]
[1674048718264,0.77992772,1585.4,1585.3,0.02496745]
[1674048718985,18.27631005,1585.4,1585.3,0.02496745]
[1674048719201,21.81561005,1585.4,1585.3,0.02496745]
[1674048719525,24.36303094,1585.4,1585.3,0.02496745]
[1674048719741,10.36303094,1585.4,1585.3,0.02496745]
[1674048719961,2.31922772,1585.4,1585.3,0.02496745]
[1674048720100,1.77992772,1585.4,1585.3,0.02496745]
[1674048720310,0.77992772,1585.4,1585.3,0.02496745]
[1674048720529,1.25322772,1585.4,1585.3,0.02496745]
[1674048721207,3.718,1585.5,1585.4,0.9727859]
[1674048721359,3.652,1585.5,1585.4,0.9727859]
[1674048721573,3.652,1585.5,1585.4,1.07256123]
[1674048721784,0.73146775,1585.5,1585.4,1.07256123]
[1674048722261,0.73146775,1585.5,1585.4,1.10401544]
[1674048722422,0.73146775,1585.5,1585.4,1.00424011]
[1674048723295,3.84809182,1585.5,1585.4,1.00424011]
[1674048724142,0.73146775,1585.5,1585.4,1.00424011]
[1674048724582,0.73146775,1585.5,1585.4,4.35086418]
[1674048724799,0.126,1586.2,1585.5,0.47683225]
[1674048725013,0.4728,1586.8,1585.5,0.47683225]
[1674048725014,0.06,1586.8,1585.9,3.0]
[1674048725188,0.32959812,1587.0,1586.0,6.11662407]
[1674048725387,0.32959812,1587.0,1586.1,3.0]
[1674048725388,0.20359812,1587.0,1586.1,3.0]
[1674048725639,0.20359812,1587.0,1586.2,3.3]
[1674048725640,1e-08,1587.0,1586.2,3.3]
[1674048725858,1e-08,1587.0,1586.2,0.3]
[1674048726068,3.47566207,1587.0,1586.3,0.03143638]
[1674048726293,3.47865703,1586.9,1586.3,0.03143638]
[1674048726436,3.54604625,1587.0,1586.3,0.03143638]
[1674048726645,3.48004625,1587.0,1586.3,0.03143638]
[1674048727058,3.48004625,1587.0,1586.0,4.041]
[1674048727059,1e-08,1587.0,1586.0,4.041]
[1674048727312,3.48038125,1587.0,1586.1,0.4041]
[1674048727479,1e-08,1587.0,1586.1,3.52072407]
[1674048727689,1e-08,1587.0,1586.2,3.703]
[1674048727956,1e-08,1587.0,1586.2,3.473]
[1674048728169,1e-08,1587.0,1586.3,3.0]
[1674048728344,1e-08,1587.0,1586.2,0.066]
[1674048728555,1e-08,1587.0,1586.2,0.40031]
[1674048728885,1e-08,1587.0,1586.2,1.40031]
[1674048729147,1e-08,1587.0,1586.2,1.0]
[1674048729492,1e-08,1587.0,1586.1,4.0031]
[1674048729725,1e-08,1587.0,1586.1,3.8771]
[1674048729899,1e-08,1587.0,1586.1,0.4041]
[1674048730108,1e-08,1587.0,1586.0,1.113]
[1674048730319,3.11662408,1587.0,1586.0,1.053]
[1674048730588,3.70764446,1586.9,1585.9,3.066]
[1674048730748,3.70764446,1586.9,1585.8,1.115]
[1674048730749,1.0,1586.7,1585.8,1.115]
[1674048731121,3.47699623,1586.6,1585.8,1.049]
[1674048731423,3.80699623,1586.6,1585.8,1.049]
[1674048731636,3.80699623,1586.6,1585.9,0.0051117]
[1674048732215,3.11662407,1586.4,1585.9,0.0051117]
[1674048732426,3.80699623,1586.6,1585.5,1.032]
[1674048732427,3.11662407,1586.1,1585.5,1.032]
[1674048732642,3.71353225,1586.3,1585.5,1.03711299]
[1674048732643,3.11662407,1586.0,1585.5,1.03711299]
[1674048732848,3.11662407,1585.9,1585.5,0.00511299]
[1674048733175,0.066,1586.1,1585.9,5.25561468]
[1674048733387,0.066,1586.1,1586.0,0.65741415]
[1674048733388,0.01,1586.1,1586.0,0.65741415]
[1674048733602,0.066,1586.8,1586.0,0.65741415]
[1674048733810,0.06600001,1587.0,1586.3,3.11662407]
[1674048734020,0.06600001,1587.0,1586.4,6.13703307]
[1674048734021,0.05400001,1587.0,1586.4,6.13703307]
[1674048734210,0.00700001,1587.0,1586.5,4.09432121]
[1674048734458,0.00700001,1587.0,1586.5,3.7029]
[1674048734644,0.00700001,1587.0,1586.6,1.09428459]
[1674048734840,0.00700001,1587.0,1586.7,0.10942846]
[1674048735048,0.00700001,1587.0,1586.7,3.10942846]
[1674048735256,0.00700001,1587.0,1586.6,0.066]
[1674048735465,0.00700001,1587.0,1586.3,4.081]
[1674048735711,0.00700001,1587.0,1586.4,4.86056665]
[1674048735883,0.00700001,1587.0,1586.5,3.0]
[1674048736106,1.151,1587.3,1587.0,0.01400001]
[1674048736107,0.066,1587.3,1587.0,0.01400001]
[1674048736309,0.17903591,1587.4,1587.0,0.01400001]
[1674048736581,0.3116395,1587.4,1587.0,0.01400001]
[1674048736819,0.17903591,1587.4,1587.0,0.01400001]
[1674048737518,0.17903591,1587.4,1587.1,0.01072491]
[1674048737998,0.17903591,1587.4,1587.1,3.12734898]
[1674048738215,0.17903591,1587.4,1587.2,6.11662407]
[1674048738216,3.591e-05,1587.4,1587.2,6.11662407]
[1674048738588,3.591e-05,1587.4,1587.3,0.01072356]
[1674048738764,1.01503591,1587.4,1587.0,0.01400001]
[1674048738975,3.49465998,1587.4,1587.0,0.01400001]
[1674048739283,3.11662407,1587.3,1587.0,0.01400001]
[1674048739510,0.34950191,1587.4,1587.0,0.01400001]
[1674048739511,3.11662407,1587.2,1587.0,0.01400001]
[1674048739725,3.11662407,1587.1,1587.0,0.01400001]
[1674048739965,4.11662407,1587.1,1587.0,0.01400001]
[1674048740879,7.31932407,1587.1,1586.3,0.64958875]
[1674048741069,6.61662407,1587.0,1586.1,2.84065713]
[1674048741289,6.61662407,1587.0,1586.2,1.37857249]
[1674048741290,6.61662407,1586.9,1586.2,1.37857249]
[1674048741599,6.61662407,1586.9,1586.3,4.21106178]
[1674048741600,0.066,1586.9,1586.3,4.21106178]
[1674048741946,0.4727,1587.3,1586.4,2.74397476]
[1674048742163,3.11662407,1587.2,1586.5,4.09438601]
[1674048742313,7.08932407,1587.1,1586.4,0.066]
[1674048742524,3.11662407,1586.9,1586.1,1.122]
[1674048742778,4.20893241,1587.0,1586.1,1.122]
[1674048742779,6.61662407,1586.8,1586.1,1.77158875]
[1674048743010,3.11662407,1586.7,1586.1,1.122]
[1674048743211,3.11662407,1586.6,1586.2,0.0395667]
[1674048743372,0.066,1586.8,1586.2,0.0395667]
[1674048743588,1.0,1586.9,1586.2,1.31514456]
[1674048743801,5.7,1587.0,1586.2,0.0395667]
[1674048744005,5.7,1587.0,1586.3,3.11662407]
[1674048744006,2.266,1587.0,1586.3,3.11662407]
[1674048744218,2.2,1587.0,1586.4,3.0]
[1674048744430,3.11662407,1586.9,1586.5,0.00636008]
[1674048744681,3.11662407,1586.8,1586.5,0.00636008]
[1674048744872,3.11662407,1586.7,1586.5,0.00636008]
[1674048745088,3.11662407,1586.6,1586.2,3.0395667]
[1674048745266,3.11662407,1586.6,1586.2,0.0395667]
[1674048745639,1.29244579,1586.6,1586.2,0.0395667]
[1674048745789,4.0388,1586.8,1586.2,0.0395667]
[1674048745994,3.11662407,1586.7,1586.2,0.0395667]
[1674048746834,1.066,1586.8,1586.2,0.0395667]
[1674048747206,0.5388,1586.9,1586.2,0.0395667]
[1674048747524,2.2,1587.0,1586.3,3.11662407]
[1674048747691,2.2,1587.0,1586.4,7.66464697]
[1674048747892,2.2,1587.0,1586.4,4.3840229]
[1674048748096,2.2,1587.0,1586.5,3.0]
[1674048748352,2.2,1587.0,1586.4,8.03066241]
[1674048748538,0.06003591,1587.4,1587.0,0.13400099]
[1674048748539,0.12603591,1587.4,1587.0,0.13400099]
[1674048748728,3.591e-05,1587.4,1587.0,0.13400099]
[1674048749194,3.591e-05,1587.4,1587.0,3.25062506]
[1674048749412,3.591e-05,1587.4,1587.0,0.13400099]
[1674048749787,3.591e-05,1587.4,1587.0,3.25062506]
[1674048750039,3.591e-05,1587.4,1587.0,0.13400099]
[1674048750832,3.591e-05,1587.4,1587.1,3.11662407]
[1674048751065,3.591e-05,1587.4,1587.2,3.0]
[1674048751575,3.591e-05,1587.4,1587.0,0.20000099]
[1674048751576,0.18143046,1587.8,1587.4,0.00196409]
[1674048751861,3.11662407,1587.7,1587.4,0.00196409]
[1674048751992,3.11662407,1587.6,1587.4,0.00196409]
[1674048752210,3.11662407,1587.5,1587.4,0.00196409]
[1674048752617,4.58922407,1587.5,1587.4,0.00196409]
[1674048752880,1.0,1587.4,1587.0,0.13400099]
[1674048753050,6.71662407,1587.3,1587.0,0.13400099]
[1674048753269,3.11662407,1587.2,1587.0,0.13400099]
[1674048753481,3.11662407,1587.1,1587.0,0.13400099]
[1674048753912,7.31932407,1587.1,1587.0,9.9e-07]
[1674048754126,7.38532407,1587.1,1586.2,0.0395667]
[1674048754347,7.82795648,1587.0,1586.2,0.0395667]
[1674048754684,6.61662407,1586.9,1586.2,0.0395667]
[1674048754986,3.18262407,1586.9,1586.2,0.0395667]
[1674048755137,3.11662407,1586.9,1586.2,0.0395667]
[1674048755349,3.11662407,1586.8,1586.2,0.0395667]
[1674048755555,3.11662407,1586.8,1586.2,0.04592799]
[1674048755769,0.066,1586.9,1586.2,0.04592799]
[1674048756013,3.11662407,1586.9,1586.2,0.04592799]
[1674048756231,3.11662407,1586.6,1586.2,0.04592799]
[1674048756448,3.11662407,1586.5,1586.2,0.0395667]
[1674048756853,3.73,1586.4,1586.2,6.67e-05]
[1674048757044,1.0,1586.3,1585.9,5.32161468]
[1674048757408,6.61662407,1586.2,1585.9,5.32161468]
[1674048757595,3.11662407,1586.0,1585.9,5.32161468]
[1674048757815,3.34662407,1586.0,1585.9,5.32161468]
[1674048757984,3.81972407,1586.0,1585.9,5.32161468]
[1674048758195,3.58972407,1586.0,1585.9,5.32161468]
[1674048758737,3.11662407,1586.0,1585.9,5.32161468]
[1674048758943,3.83105272,1586.0,1585.9,5.32161468]
[1674048759451,4.30415272,1586.0,1585.9,5.32161468]
[1674048760253,3.58972407,1586.0,1585.9,5.32161468]
[1674048760563,3.11662407,1586.0,1585.9,5.32161468]
[1674048761158,3.34662407,1586.0,1585.9,5.32161468]
[1674048761372,3.58972407,1586.0,1585.9,5.32161468]
[1674048761817,3.11662407,1586.0,1585.9,5.27161468]
[1674048761981,0.066,1586.1,1585.9,5.3000187]
[1674048762194,3.11662407,1586.1,1585.9,5.3000187]
[1674048762755,0.066,1586.3,1585.9,5.83002057]
[1674048763083,3.49763687,1586.6,1585.9,5.83002057]
[1674048763084,0.066,1586.6,1586.3,2.26904026]
[1674048763295,0.4729,1586.7,1586.3,2.26904026]
[1674048763296,3.11662407,1586.4,1586.3,2.26904026]
[1674048764513,6.54522312,1586.4,1586.3,2.26904026]
[1674048764740,3.84374638,1586.4,1586.3,2.26904026]
[1674048764944,3.58962407,1586.4,1586.3,2.26904026]
[1674048765170,3.11662407,1586.4,1586.3,2.26904026]
[1674048765382,1.0,1586.3,1586.1,2.98480032]
[1674048765554,3.11662407,1586.2,1586.1,2.91880032]
[1674048765765,1.94866439,1586.2,1586.1,2.91880032]
[1674048766011,2.29743083,1586.2,1586.1,2.91880032]
[1674048766234,2.52743083,1586.2,1586.1,2.92321892]
[1674048766403,2.29743083,1586.2,1586.1,2.92321892]
[1674048766859,3.11662407,1586.2,1586.1,2.92321892]
[1674048767076,0.066,1586.4,1586.1,2.92321892]
[1674048767398,3.11662407,1586.3,1586.1,2.92321892]
[1674048767560,3.11662407,1586.2,1586.1,2.92321892]
[1674048770291,4.81962407,1586.2,1586.1,2.92321892]
[1674048770501,0.473,1586.2,1586.1,2.92321892]
[1674048770775,3.49557545,1586.7,1586.1,2.92321892]
[1674048770972,3.11662407,1586.6,1586.1,2.92321892]
[1674048771282,3.11662407,1586.5,1586.1,2.92321892]
[1674048771477,3.11662407,1586.3,1586.1,2.92321892]
[1674048771688,3.42828648,1586.2,1586.1,2.92321892]
[1674048771897,3.90128648,1586.2,1586.1,2.92321892]
[1674048772118,3.42828648,1586.2,1586.1,2.92321892]
[1674048772288,3.90128648,1586.2,1586.1,2.92321892]
[1674048772495,3.11662407,1586.2,1586.1,2.92321892]
[1674048773161,0.539,1586.4,1586.1,2.92321892]
[1674048773374,3.11662407,1586.2,1586.1,2.92321892]
[1674048775665,0.539,1586.4,1586.1,2.92321892]
[1674048775981,1.0,1586.6,1586.1,2.92321892]
[1674048775982,3.11662407,1586.3,1586.1,2.92321892]
[1674048776517,0.066,1586.4,1586.1,2.92321892]
[1674048776729,0.014,1586.4,1586.1,2.92321892]
[1674048776981,1.483,1586.7,1586.1,2.92321892]
[1674048776982,1.431,1586.7,1586.1,2.92321892]
[1674048777191,3.11662407,1586.4,1586.1,2.92321892]
[1674048777347,3.11662407,1586.2,1586.1,2.92321892]
[1674048778009,0.473,1586.4,1586.1,2.92321892]
[1674048778010,0.066,1586.4,1586.1,2.92321892]
[1674048778199,3.11662407,1586.4,1586.1,2.92321892]
[1674048778429,0.066,1586.6,1586.1,2.92321892]
[1674048778637,3.11662407,1586.5,1586.1,2.92321892]
[1674048778826,3.11662407,1586.3,1586.1,2.92321892]
[1674048779497,3.11662407,1586.2,1586.1,2.92321892]
[1674048779885,0.066,1586.4,1586.1,2.92321892]
[1674048780095,3.11662407,1586.4,1586.1,2.92321892]
[1674048780344,0.066,1586.6,1586.1,3.22214081]
[1674048780497,0.066,1586.8,1586.1,3.22214081]
[1674048780865,3.4972843,1586.9,1586.1,3.22214081]
[1674048780866,3.11662407,1586.7,1586.1,2.92321892]
[1674048781079,3.11662407,1586.7,1586.1,2.93068255]
[1674048781237,0.5388,1586.8,1586.1,2.93068255]
[1674048781238,0.066,1586.8,1586.1,2.93068255]
[1674048781445,3.96159849,1587.0,1586.1,2.93068255]
[1674048781707,0.066,1587.1,1586.2,3.23]
[1674048781865,0.19782413,1587.2,1586.3,4.53410812]
[1674048782072,0.19782413,1587.2,1586.4,7.44101994]
[1674048782073,3.3144482,1587.2,1586.4,7.44101994]
[1674048782445,0.19782413,1587.2,1586.5,0.00746174]
[1674048782757,3.11662407,1587.1,1586.5,0.00746174]
[1674048783076,3.11662407,1587.0,1586.3,3.0704186]
[1674048783292,7.91668461,1586.9,1586.3,0.0144186]
[1674048783510,6.60570439,1586.8,1586.3,0.0044186]
[1674048783650,3.11662407,1586.7,1586.3,0.0044186]
[1674048783860,3.11662407,1586.6,1586.3,0.0044186]
[1674048784124,3.11662407,1586.5,1586.3,0.0044186]
[1674048784293,6.92828648,1586.4,1586.0,0.066]
[1674048784503,6.92828648,1586.4,1585.9,5.27161468]
[1674048784504,3.11662407,1586.1,1585.9,5.27161468]
[1674048784759,3.5,1586.3,1585.9,5.27161468]
[1674048784760,3.11662407,1586.0,1585.9,5.27161468]
[1674048785125,12.43862408,1586.0,1585.9,5.27161468]
[1674048785492,8.73094212,1586.0,1585.9,5.27161468]
[1674048785665,11.84756619,1586.0,1585.9,5.27161468]
[1674048786081,13.03232281,1586.0,1585.9,5.27161468]
[1674048786708,13.26232281,1586.0,1585.9,5.27161468]
[1674048786926,13.73542281,1586.0,1585.9,5.27161468]
[1674048787640,13.26232281,1586.0,1585.9,5.27161468]
[1674048788340,1.0,1585.9,1585.6,0.2702156]
[1674048788541,3.11662407,1585.7,1585.6,0.2702156]
[1674048788697,6.84662407,1585.7,1585.6,0.2702156]
[1674048788907,3.18262407,1585.7,1585.6,0.2702156]
[1674048789154,3.11662407,1585.7,1585.6,0.2702156]
[1674048789818,1.9483282,1585.7,1585.6,0.2702156]
[1674048790037,2.15976102,1585.7,1585.6,0.2702156]
[1674048790206,3.38976102,1585.7,1585.6,0.2702156]
[1674048790557,3.86296102,1585.7,1585.6,0.2702156]
[1674048790775,3.666,1585.8,1585.6,0.2702156]
[1674048790776,0.066,1585.8,1585.6,0.9072156]
[1674048790935,0.054,1585.8,1585.6,0.9072156]
[1674048791145,8.73094212,1586.0,1585.6,0.9072156]
[1674048791707,3.11662407,1585.9,1585.6,0.2702156]
[1674048791931,3.11662407,1585.8,1585.6,0.2702156]
[1674048792073,3.42828648,1585.7,1585.6,0.2702156]
[1674048792288,6.92828648,1585.7,1585.6,0.2702156]
[1674048792555,6.99428648,1585.7,1585.6,0.2702156]
[1674048792724,21.46748648,1585.7,1585.6,0.2702156]
[1674048793131,3.65582407,1585.7,1585.6,0.2702156]
[1674048793421,3.11662407,1585.7,1585.6,0.9072156]
[1674048793984,3.11662407,1585.7,1585.6,0.2702156]
[1674048794199,3.34662407,1585.7,1585.6,0.2702156]
[1674048794425,20.84662407,1585.7,1585.6,0.2702156]
[1674048794680,27.42439648,1585.7,1585.6,0.2702156]
[1674048795025,37.86239648,1585.7,1585.5,0.05170259]
[1674048795231,37.86239648,1585.7,1585.4,0.00126929]
[1674048795232,17.01282407,1585.6,1585.4,0.00126929]
[1674048795453,20.61662407,1585.5,1585.4,0.00126929]
[1674048795666,20.91262407,1585.5,1585.4,0.00126929]
[1674048795897,22.24047399,1585.5,1585.4,0.00126929]
[1674048796084,7.76727399,1585.5,1585.4,0.00126929]
[1674048796295,8.24047399,1585.5,1585.4,0.00126929]
[1674048796507,15.10188058,1585.5,1585.4,0.00126929]
[1674048796726,1.0,1585.4,1585.2,0.02625907]
[1674048796914,6.61662407,1585.3,1585.2,0.02625907]
[1674048797121,14.33562407,1585.3,1585.2,0.02625907]
[1674048797544,7.68262407,1585.3,1585.2,0.02625907]
[1674048797754,7.68262407,1585.3,1584.8,0.05096607]
[1674048797755,0.026,1585.2,1584.8,0.05096607]
[1674048798016,3.11662407,1584.9,1584.8,0.05096607]
[1674048798532,20.61662407,1584.9,1584.6,0.05122592]
[1674048798863,3.11662407,1584.7,1584.6,0.05122592]
[1674048799078,20.61662407,1584.7,1584.6,0.05122592]
[1674048799225,30.80912407,1584.7,1584.6,0.05122592]
[1674048799435,36.40431213,1584.7,1584.5,0.04089923]
[1674048799729,36.40431213,1584.7,1584.0,1.092107]
[1674048799730,10.438,1584.5,1584.0,1.092107]
[1674048799858,3.11662407,1584.2,1584.0,1.092107]
[1674048800071,24.153,1584.4,1584.0,1.092107]
[1674048800072,3.11662407,1584.1,1584.0,1.092107]
[1674048800312,3.566,1584.3,1584.1,0.97548987]
[1674048800313,0.066,1584.2,1584.1,0.97548987]
[1674048800537,4.48822407,1584.2,1584.1,0.97548987]
[1674048800729,4.71822407,1584.2,1584.1,0.97548987]
[1674048800976,7.98822407,1584.2,1584.1,0.97548987]
[1674048801114,4.48986932,1584.2,1584.1,0.97548987]
[1674048801488,4.48986932,1584.2,1583.7,0.04138045]
[1674048801489,6.90162407,1584.1,1583.7,0.04138045]
[1674048801641,3.5,1584.0,1583.7,0.04138045]
[1674048801853,17.11662407,1583.8,1583.7,0.04138045]
[1674048802110,20.68262407,1583.8,1583.4,0.0041021]
[1674048802272,25.11662407,1583.5,1582.6,1.30411226]
[1674048802483,25.11662407,1583.5,1582.4,2.52221926]
[1674048802484,14.0,1583.1,1582.4,2.52221926]
[1674048802732,1.31924388,1582.7,1582.5,0.00506216]
[1674048802960,10.654,1583.1,1582.7,0.60845433]
[1674048803173,10.654,1583.1,1582.5,0.65205613]
[1674048803174,14.505,1583.1,1582.5,0.65205613]
[1674048803341,14.505,1583.1,1582.3,2.94072516]
[1674048803342,10.72,1583.1,1582.6,0.4741]
[1674048803550,10.72,1583.1,1582.6,0.63674173]
[1674048803782,10.72,1583.1,1582.5,0.63674173]
[1674048803997,10.72,1583.1,1582.8,1.0]
[1674048804170,10.72,1583.1,1582.9,0.1]
[1674048804379,10.72,1583.1,1582.8,1.0]
[1674048804631,10.72,1583.1,1582.9,0.63674173]
[1674048805005,10.72,1583.1,1582.8,1.0]
[1674048805462,10.72,1583.1,1582.6,1.63674173]
[1674048806070,10.72,1583.1,1582.6,0.63674173]
[1674048806267,11.477,1583.1,1582.7,1.0]
[1674048806488,3.11662407,1583.0,1582.7,1.0]
[1674048806811,3.11662407,1582.9,1582.3,1.39]
[1674048807040,6.61662407,1582.8,1582.3,1.324]
[1674048807386,3.11662407,1582.7,1582.3,1.324]
[1674048807683,3.11662407,1582.6,1582.3,1.4564]
[1674048807843,3.11662407,1582.6,1582.3,0.1324]
[1674048808048,0.066,1582.8,1582.1,0.06435475]
[1674048808049,3.11662407,1582.5,1582.1,0.06435475]
[1674048808306,4.883,1582.8,1582.1,0.06435475]
[1674048808307,3.11662407,1582.4,1582.1,0.06435475]
[1674048808537,3.11662407,1582.3,1582.1,0.06435475]
[1674048808738,3.11662407,1582.2,1582.1,0.06435475]
[1674048809109,3.11662407,1582.2,1581.4,0.066]
[1674048809345,11.083,1582.3,1581.3,0.0056994]
[1674048809346,3.11662407,1582.0,1581.3,0.0056994]
[1674048809572,18.28586241,1582.1,1581.3,0.0056994]
[1674048809573,6.61662407,1581.9,1581.3,0.0056994]
[1674048809801,3.11662407,1581.8,1581.3,1.3206994]
[1674048810001,0.066,1581.9,1581.3,0.0056994]
[1674048810002,2.56729352,1581.7,1581.3,0.0056994]
[1674048810171,0.066,1581.9,1581.7,0.34687227]
[1674048810531,14.85186241,1582.1,1581.9,0.1072749]
[1674048810671,14.5402,1582.1,1581.9,0.1072749]
[1674048810889,1.23,1582.0,1581.9,0.1072749]
[1674048811098,1.7043,1582.0,1581.9,0.1072749]
[1674048811374,2.55852058,1582.0,1581.9,0.1072749]
[1674048811524,7.2532875,1582.0,1581.9,0.0002749]
[1674048811723,10.41248,1582.0,1581.9,0.0002749]
[1674048811937,1.0,1581.9,1581.7,0.34687227]
[1674048812150,14.0,1581.8,1581.7,0.34687227]
[1674048812396,15.39452058,1581.8,1581.7,0.34687227]
[1674048812603,20.09200218,1581.8,1581.7,0.34687227]
[1674048812820,20.09200218,1581.8,1580.8,1.092107]
[1674048812821,33.17900218,1581.8,1580.8,1.092107]
[1674048813072,33.17900218,1581.8,1580.8,0.81520701]
[1674048813073,14.0,1581.1,1580.8,0.81520701]
[1674048813280,0.066,1581.1,1580.8,7.01e-06]
[1674048813492,3.851,1581.3,1580.8,7.01e-06]
[1674048813645,3.851,1581.4,1580.8,7.01e-06]
[1674048813849,3.255,1581.1,1580.8,7.01e-06]
[1674048815357,0.4746,1581.0,1580.8,7.01e-06]
[1674048815550,14.0,1580.9,1580.8,7.01e-06]
[1674048815758,25.50692064,1580.9,1580.8,7.01e-06]
[1674048815969,33.35230372,1580.9,1580.3,0.05959022]
[1674048816183,33.35230372,1580.9,1579.7,0.09]
[1674048816184,14.0,1580.5,1579.7,0.09]
[1674048816432,1.0,1580.4,1579.9,0.02574137]
[1674048816582,0.066,1580.5,1579.9,0.02574137]
[1674048816583,14.0,1580.5,1579.9,1.33474137]
[1674048816792,3.785,1580.4,1579.9,1.33474137]
[1674048817066,25.8332829,1580.5,1579.9,1.33474137]
[1674048817370,17.2878629,1580.4,1580.3,1.0]
[1674048817584,17.3018629,1580.4,1580.1,0.02573812]
[1674048817799,14.42470382,1580.4,1580.1,0.02573812]
[1674048818113,2.262,1580.6,1580.3,1.0]
[1674048818653,2.262,1580.6,1579.8,25.757]
[1674048818857,14.0,1580.1,1580.0,0.066]
[1674048819000,14.066,1580.1,1579.7,0.09]
[1674048819206,14.0,1579.9,1579.6,0.17127402]
[1674048819420,14.0,1579.9,1579.2,1.092107]
[1674048819421,22.0,1579.7,1579.2,1.092107]
[1674048819677,14.0,1579.3,1579.2,1.092107]
[1674048819958,0.09658,1579.3,1579.2,1.092107]
[1674048820165,2.327,1579.3,1579.2,1.092107]
[1674048820594,2.327,1579.3,1579.2,0.637107]
[1674048820840,0.06,1579.9,1579.2,0.637107]
[1674048820841,0.066,1579.6,1579.3,2.05259425]
[1674048821009,1.0,1580.1,1579.4,0.20525942]
[1674048821220,0.066,1580.2,1579.4,0.68035942]
[1674048821536,14.0,1580.2,1579.4,0.68035942]
[1674048821748,0.066,1580.2,1579.4,0.20525942]
[1674048821966,2.71222657,1580.3,1579.4,4.20525942]
[1674048822179,0.27122266,1580.2,1579.3,2.11859425]
[1674048822429,14.0,1579.8,1579.3,2.05259425]
[1674048822640,14.0,1579.6,1579.3,2.05259425]
[1674048822796,16.78610997,1579.6,1579.3,2.05259425]
[1674048823004,16.78610997,1579.6,1579.2,0.000107]
[1674048823005,14.0,1579.4,1579.2,0.000107]
[1674048823280,1.4,1579.3,1579.2,0.000107]
[1674048823424,17.19825964,1579.3,1579.2,0.000107]
[1674048823636,17.19825964,1579.3,1578.5,0.57966]
[1674048823637,29.13100137,1579.3,1578.5,0.57966]
[1674048823954,14.0,1578.8,1578.5,0.57966]
[1674048824305,14.0,1578.8,1577.8,1.257]
[1674048824306,14.75448722,1578.6,1577.8,0.05]
[1674048824512,14.0,1577.9,1577.6,0.218107]
[1674048824703,14.0,1577.7,1577.6,0.218107]
[1674048824915,25.566,1577.7,1577.6,0.218107]
[1674048825125,1.18050127,1577.7,1577.6,0.218107]
[1674048825362,1.26,1578.0,1577.5,0.0099698]
[1674048825687,1.252,1578.5,1577.5,0.0099698]
[1674048825688,0.03058,1578.6,1577.7,1.04681029]
[1674048825906,0.03058,1578.6,1577.8,0.10468103]
[1674048826053,0.03058,1578.6,1577.9,0.00148953]
[1674048826054,1.28258,1578.6,1577.9,0.00148953]
[1674048826262,0.126,1578.8,1578.2,3.0]
[1674048826595,15.252,1579.4,1578.1,0.06]
[1674048826596,14.126,1579.4,1578.1,0.06]
[1674048826807,1.239,1579.2,1577.9,1.299]
[1674048827018,0.1239,1579.1,1577.9,1.0]
[1674048827225,14.0,1578.9,1577.9,1.06]
[1674048827434,14.0,1578.5,1577.9,1.0]
[1674048827654,14.0,1578.0,1577.7,1.19450587]
[1674048827951,14.0,1577.8,1577.7,1.19450587]
[1674048828215,14.066,1577.8,1577.7,1.19450587]
[1674048828400,23.17784173,1577.8,1577.1,1.285]
[1674048828607,23.17784173,1577.8,1576.8,0.06]
[1674048828608,22.0,1577.2,1576.8,0.06]
[1674048828794,14.0,1576.9,1576.8,0.06]
[1674048829004,0.066,1576.9,1576.4,0.04440585]
[1674048829214,1.225,1577.6,1576.4,3.04440585]
[1674048829215,0.03058,1576.8,1576.4,3.04440585]
[1674048829445,14.06,1577.4,1576.4,0.04440585]
[1674048829672,14.0,1577.0,1576.5,1.212]
[1674048829884,0.066,1577.0,1576.6,0.1212]
[1674048830051,0.066,1577.0,1576.4,0.04440585]
[1674048830052,14.0,1577.0,1576.4,0.04440585]
[1674048830276,1.26,1577.3,1577.0,1.69549502]
[1674048830480,0.03,1577.3,1577.0,1.69549502]
[1674048830710,1.03435995,1577.5,1577.1,0.01085476]
[1674048830711,0.014,1577.5,1577.1,0.01085476]
[1674048830932,0.052,1577.7,1577.1,0.01085476]
[1674048831156,0.052,1577.7,1577.5,0.00939278]
[1674048831157,0.012,1577.7,1577.5,0.00939278]
[1674048831367,0.054,1578.3,1577.5,0.00939278]
[1674048831516,0.01,1578.3,1577.6,3.4756]
[1674048831729,15.189,1579.2,1577.7,3.0]
[1674048831730,14.0,1578.7,1577.7,3.0]
[1674048832079,14.066,1578.7,1577.6,0.5416]
[1674048832250,0.066,1578.7,1577.9,3.0]
[1674048832461,14.0,1578.5,1577.7,0.338]
[1674048832671,1.241,1579.0,1577.9,0.4755]
[1674048832672,1.0,1579.0,1577.9,0.4755]
[1674048832955,1.0,1579.0,1577.9,3.0]
[1674048833106,1.0,1579.0,1578.0,0.4755]
[1674048833300,0.1,1578.9,1577.8,0.5355]
[1674048833514,0.075,1579.0,1578.0,1.0]
[1674048833736,0.4749,1578.8,1577.9,0.06]
[1674048833997,12.674,1579.1,1577.7,4.512]
[1674048833998,0.4749,1578.9,1577.7,4.512]
[1674048834158,14.0,1578.5,1577.7,0.272]
[1674048834372,14.0,1578.5,1577.7,0.212]
[1674048834373,0.066,1578.5,1577.7,0.212]
[1674048834587,14.63674173,1578.7,1577.7,0.1386]
[1674048834911,14.0,1578.5,1577.7,0.1386]
[1674048835172,0.00899999,1578.4,1577.7,0.1386]
[1674048835382,14.066,1578.5,1577.7,0.1386]
[1674048835575,14.066,1578.5,1577.7,1.1386]
[1674048835787,14.066,1578.5,1577.8,0.11386]
[1674048836018,14.07499999,1578.5,1577.7,0.1386]
[1674048836237,14.07499999,1578.5,1577.6,1.174]
[1674048836448,0.63674173,1578.4,1577.6,1.174]
[1674048836637,14.0,1578.6,1577.7,0.4756]
[1674048836854,0.066,1578.6,1577.8,1.0]
[1674048837070,14.0,1579.0,1577.9,3.0]
[1674048837071,0.141,1579.0,1577.9,3.0]
[1674048837270,0.075,1579.1,1578.0,0.3]
[1674048837461,0.075,1579.2,1578.0,6.7969793]
[1674048837820,0.71174173,1579.3,1578.2,3.0]